bitfinex-derivatives/quotes_SOLF0:USTF0_20240912
["timestamp","ask_amount","ask_price","bid_price","bid_amount"]
[1726154379995,3.3351,134.94,134.85,17.81]
[1726154380589,5.3435,134.95,134.85,17.81]
[1726154382184,2.0087,134.95,134.9,3.3358]
[1726154382387,2.0087,134.95,134.9,7.11490285]
[1726154382580,2.0087,134.95,134.9,3.3358]
[1726154383293,2.0087,134.95,134.91,3.3356]
[1726154384298,2.0087,134.95,134.9,7.08561897]
[1726154385499,2.0087,134.95,134.87,17.81]
[1726154385688,2.0087,134.95,134.88,3.75101919]
[1726154385689,19.8187,134.95,134.88,3.75101919]
[1726154385889,19.8187,134.95,134.86,17.81]
[1726154386296,19.8187,134.95,134.87,3.68801423]
[1726154386798,3.3354,134.92,134.87,3.68801423]
[1726154387291,19.8187,134.95,134.83,17.81]
[1726154387292,3.3359,134.91,134.83,17.81]
[1726154387599,2.0725,134.91,134.83,17.81]
[1726154388003,5.4084,134.91,134.85,3.3369]
[1726154388886,5.4084,134.91,134.86,3.3369]
[1726154389193,5.4084,134.91,134.83,17.81]
[1726154389595,5.4084,134.91,134.85,3.337]
[1726154389801,2.0725,134.91,134.83,17.81]
[1726154390198,2.0725,134.91,134.85,3.3371]
[1726154390401,2.0725,134.91,134.86,3.68050407]
[1726154390603,2.0725,134.91,134.81,17.81]
[1726154390794,2.0725,134.91,134.84,3.3374]
[1726154391496,2.0725,134.91,134.81,17.81]
[1726154391799,3.3366,134.88,134.82,3.3378]
[1726154392300,1.8824,134.87,134.83,3.3376]
[1726154392902,1.8824,134.87,134.84,3.3374]
[1726154393501,5.2192,134.87,134.8,17.81]
[1726154393803,1.8824,134.87,134.8,17.81]
[1726154394306,1.8824,134.87,134.82,3.3379]
[1726154394506,1.8824,134.87,134.8,21.52227289]
[1726154395300,1.8824,134.87,134.83,3.3374]
[1726154395604,1.8824,134.87,134.8,21.52227289]
[1726154395605,1.8824,134.87,134.81,17.81]
[1726154396306,1.8824,134.87,134.81,21.49149796]
[1726154396607,1.8824,134.87,134.84,3.3373]
[1726154396998,1.8824,134.87,134.83,3.3375]
[1726154397813,1.8824,134.87,134.82,3.3377]
[1726154398010,1.8824,134.87,134.8,17.81]
[1726154398206,1.8824,134.87,134.8,21.49752576]
[1726154398892,1.8824,134.87,134.82,3.3379]
[1726154400004,1.8824,134.87,134.83,3.3376]
[1726154400305,1.8824,134.87,134.8,21.49752576]
[1726154400492,1.8824,134.87,134.84,3.3373]
[1726154401096,1.8824,134.87,134.8,3.68752576]
[1726154401299,1.8824,134.87,134.72,241.0986]
[1726154401496,2.02,134.86,134.76,17.81]
[1726154401796,5.357,134.86,134.8,3.3383]
[1726154402002,5.357,134.86,134.8,7.13437849]
[1726154402302,19.83,134.86,134.76,17.81]
[1726154402498,1.9401,134.85,134.73,25.228]
[1726154402694,1.9401,134.85,134.77,17.81]
[1726154402920,1.9401,134.85,134.77,21.56936737]
[1726154403105,2.02,134.86,134.77,21.56936737]
[1726154403298,2.02,134.86,134.79,17.81]
[1726154404001,2.02,134.86,134.79,21.49454235]
[1726154404397,2.02,134.86,134.81,3.3381]
[1726154404605,2.02,134.86,134.79,21.49454235]
[1726154404904,2.02,134.86,134.81,3.338]
[1726154405207,2.02,134.86,134.79,21.49454235]
[1726154405702,2.02,134.86,134.79,3.68454235]
[1726154405908,21.7743,134.86,134.77,17.81]
[1726154406211,3.3374,134.84,134.78,3.3388]
[1726154407412,21.7743,134.86,134.77,3.68899273]
[1726154407703,21.7743,134.86,134.75,17.81]
[1726154407909,25.57464117,134.86,134.75,17.81]
[1726154408508,3.3375,134.84,134.78,3.3389]
[1726154409003,3.3377,134.83,134.78,3.3389]
[1726154409208,3.3377,134.83,134.77,3.339]
[1726154409912,21.1479,134.82,134.76,3.3393]
[1726154410210,1.9541,134.81,134.77,3.69594243]
[1726154410421,1.9541,134.81,134.77,3.339]
[1726154410611,1.9541,134.81,134.77,7.13397069]
[1726154410909,21.7743,134.86,134.77,3.79497069]
[1726154411114,1.9541,134.85,134.76,17.81]
[1726154411509,3.3375,134.84,134.78,3.3388]
[1726154411906,3.3375,134.84,134.76,21.42842593]
[1726154412110,5.2913,134.85,134.76,21.42842593]
[1726154412407,1.9541,134.85,134.76,21.42842593]
[1726154412712,3.3378,134.83,134.77,3.3391]
[1726154412905,3.3378,134.83,134.73,17.81]
[1726154412906,19.7641,134.85,134.73,17.81]
[1726154413105,19.7641,134.85,134.75,17.81]
[1726154413306,3.3375,134.84,134.78,3.3387]
[1726154413501,19.7641,134.85,134.78,7.08424896]
[1726154413701,19.7641,134.85,134.78,3.3387]
[1726154413896,19.7641,134.85,134.77,3.339]
[1726154414611,19.7641,134.85,134.75,3.6847181]
[1726154414910,19.7641,134.85,134.73,17.81]
[1726154415304,17.81,134.82,134.73,21.54071216]
[1726154415705,1.9747,134.81,134.73,21.54071216]
[1726154415912,1.9747,134.81,134.76,3.3394]
[1726154416208,17.81,134.8,134.73,3.73071216]
[1726154416426,19.7454,134.8,134.69,17.81]
[1726154416611,21.7241,134.8,134.69,17.81]
[1726154416804,3.3388,134.79,134.72,3.3403]
[1726154417006,17.81,134.78,134.73,3.77337488]
[1726154417209,17.81,134.78,134.67,17.81]
[1726154417410,21.149,134.78,134.71,3.3404]
[1726154417611,21.149,134.78,134.71,3.77745621]
[1726154417812,21.149,134.78,134.67,17.81]
[1726154418308,21.149,134.78,134.64,11.12756973]
[1726154418508,21.149,134.78,134.67,17.81]
[1726154418706,21.149,134.78,134.67,21.54404571]
[1726154419012,21.149,134.78,134.72,3.3403]
[1726154420308,1.9354,134.8,134.72,17.81]
[1726154421016,1.9354,134.8,134.75,3.3395]
[1726154421209,1.9354,134.8,134.76,3.76029684]
[1726154421608,1.9354,134.8,134.76,7.09969684]
[1726154421809,1.9747,134.81,134.74,17.81]
[1726154422008,1.9747,134.81,134.74,21.53319109]
[1726154422209,3.3377,134.83,134.74,21.53319109]
[1726154422409,3.338,134.82,134.74,21.53319109]
[1726154422620,17.81,134.83,134.75,3.3396]
[1726154422810,17.81,134.83,134.74,3.72319109]
[1726154423015,3.3383,134.81,134.72,17.81]
[1726154423307,3.3383,134.81,134.74,3.3397]
[1726154423521,3.3383,134.81,134.75,3.73544031]
[1726154423821,3.3383,134.81,134.75,7.07504031]
[1726154424029,3.3383,134.81,134.75,3.3396]
[1726154424211,21.1479,134.83,134.76,7.0550801]
[1726154424412,21.1479,134.83,134.73,17.81]
[1726154424612,17.81,134.83,134.73,17.81]
[1726154424922,17.81,134.83,134.76,3.3392]
[1726154425113,17.81,134.83,134.76,7.04162599]
[1726154425320,21.1477,134.83,134.76,7.04162599]
[1726154426118,21.1477,134.83,134.77,3.3391]
[1726154426334,21.1477,134.83,134.73,17.81]
[1726154426513,21.1477,134.83,134.76,3.3392]
[1726154426817,21.1477,134.83,134.77,3.74842347]
[1726154427022,17.81,134.83,134.75,3.3396]
[1726154427219,17.81,134.83,134.76,3.78143779]
[1726154427721,3.3381,134.82,134.76,3.3393]
[1726154427922,3.3381,134.82,134.76,3.72245715]
[1726154428118,17.81,134.83,134.73,17.81]
[1726154428320,3.3383,134.81,134.75,3.3395]
[1726154428522,3.3383,134.81,134.75,7.13503379]
[1726154428721,17.81,134.83,134.73,17.81]
[1726154428722,3.3384,134.8,134.74,3.3398]
[1726154428917,3.3384,134.8,134.75,3.69166852]
[1726154429817,3.3385,134.8,134.72,17.81]
[1726154430127,17.81,134.83,134.72,17.81]
[1726154430321,3.339,134.78,134.72,21.1503]
[1726154430520,1.9049,134.79,134.7,17.81]
[1726154430910,7.152,134.79,134.72,3.3402]
[1726154431226,9.0695,134.79,134.72,3.3402]
[1726154431417,5.7308,134.79,134.72,3.3402]
[1726154431610,3.339,134.78,134.71,3.3406]
[1726154431811,21.149,134.78,134.71,3.3406]
[1726154432011,17.81,134.78,134.67,21.54404571]
[1726154432217,17.81,134.76,134.67,3.73404571]
[1726154432519,17.81,134.76,134.65,17.81]
[1726154432713,17.81,134.76,134.65,21.61130631]
[1726154433325,17.81,134.76,134.65,29.02930631]
[1726154434925,17.81,134.76,134.7,3.3407]
[1726154435923,21.1495,134.76,134.69,3.341]
[1726154436722,3.3397,134.75,134.65,29.02930631]
[1726154436923,3.3397,134.75,134.65,21.61130631]
[1726154437430,3.3397,134.75,134.68,3.3412]
[1726154437731,3.3395,134.76,134.69,3.341]
[1726154437931,17.81,134.77,134.69,3.341]
[1726154438321,3.3395,134.76,134.7,3.3408]
[1726154438721,17.81,134.77,134.66,17.81]
[1726154439530,9.36547676,134.79,134.66,17.81]
[1726154439531,23.5408,134.79,134.68,17.81]
[1726154439734,5.7308,134.79,134.71,17.81]
[1726154441440,1.9049,134.79,134.75,3.3395]
[1726154441629,1.9049,134.79,134.75,7.03892713]
[1726154441827,1.9049,134.79,134.75,3.3395]
[1726154442225,17.81,134.84,134.76,3.76521768]
[1726154442426,19.8294,134.84,134.75,17.81]
[1726154442757,19.8294,134.84,134.75,21.49543826]
[1726154443324,761.33252,134.83,134.77,3.339]
[1726154443520,761.33252,134.83,134.77,17.81]
[1726154444131,761.33252,134.83,134.79,17.81]
[1726154445421,761.33252,134.83,134.75,3.68543826]
[1726154445624,761.33252,134.83,134.76,17.81]
[1726154445821,761.33252,134.83,134.76,21.55425159]
[1726154446635,761.33252,134.83,134.76,3.74425159]
[1726154446930,761.33252,134.83,134.73,17.81]
[1726154447127,761.33252,134.83,134.76,17.81]
[1726154447333,761.33252,134.83,134.76,21.45448894]
[1726154447534,761.33252,134.83,134.76,3.64448894]
[1726154447727,763.32272,134.83,134.74,17.81]
[1726154448132,763.32272,134.83,134.73,28.5]
[1726154448436,28.5,134.82,134.7,28.5]
[1726154449025,3.3383,134.81,134.73,3.3399]
[1726154449231,3.3383,134.81,134.74,3.63322697]
[1726154449457,28.5,134.82,134.7,28.5]
[1726154450141,31.838,134.82,134.74,3.3398]
[1726154450441,28.5,134.82,134.74,3.63396898]
[1726154450658,28.5,134.82,134.7,28.5]
[1726154450941,28.5,134.82,134.75,3.3396]
[1726154451130,763.32272,134.83,134.75,3.69629739]
[1726154451325,763.32272,134.83,134.75,28.5]
[1726154451529,763.32272,134.83,134.75,32.21781553]
[1726154451839,763.32272,134.83,134.79,3.3385]
[1726154452024,761.33252,134.83,134.79,3.3385]
[1726154452222,761.33252,134.83,134.77,28.5]
[1726154452431,761.33252,134.83,134.81,3.3381]
[1726154454635,761.33252,134.83,134.8,3.3383]
[1726154455428,761.33252,134.83,134.81,3.3381]
[1726154455977,761.33252,134.83,134.77,28.5]
[1726154456437,761.33252,134.83,134.8,3.3382]
[1726154457037,761.33252,134.83,134.79,3.3386]
[1726154457238,761.33252,134.83,134.77,28.5]
[1726154457635,761.33252,134.83,134.79,3.3386]
[1726154458436,761.33252,134.83,134.78,3.3388]
[1726154459536,761.33252,134.83,134.79,3.3386]
[1726154461844,761.33252,134.83,134.8,3.3383]
[1726154462445,761.33252,134.83,134.79,3.3386]
[1726154462646,761.33252,134.83,134.77,28.5]
[1726154462846,761.33252,134.83,134.79,3.3386]
[1726154463752,761.33252,134.83,134.77,28.5]
[1726154464153,761.33252,134.83,134.79,3.3385]
[1726154466251,761.33252,134.83,134.77,28.5]
[1726154466645,761.33252,134.83,134.8,3.3383]
[1726154467450,761.33252,134.83,134.79,28.5]
[1726154468046,761.33252,134.83,134.76,7.423]
[1726154468249,761.33252,134.83,134.75,3.71781553]
[1726154468250,761.33252,134.83,134.8,17.79]
[1726154468545,761.33252,134.83,134.78,17.79]
[1726154468951,761.33252,134.83,134.79,3.62593739]
[1726154470155,761.33252,134.83,134.79,6.96453739]
[1726154470356,761.33252,134.83,134.79,3.62593739]
[1726154470664,761.33252,134.83,134.81,3.338]
[1726154470858,761.33252,134.83,134.73,25.213]
[1726154470859,676.64252,134.83,134.82,17.79]
[1726154471854,676.64252,134.83,134.82,21.1279]
[1726154472852,643.58252,134.83,134.82,21.1279]
[1726154473082,615.70252,134.83,134.82,28.5509]
[1726154473259,591.95252,134.83,134.82,28.5509]
[1726154473854,591.95252,134.83,134.82,21.1279]
[1726154474152,591.95252,134.83,134.82,3.3379]
[1726154474357,591.95252,134.83,134.81,3.3381]
[1726154474755,591.95252,134.83,134.8,17.79]
[1726154475149,591.95252,134.83,134.82,3.3379]
[1726154476755,591.95252,134.83,134.81,3.3381]
[1726154477265,591.95252,134.83,134.76,21.44635135]
[1726154477448,591.95252,134.83,134.74,7.423]
[1726154477648,3.8522,134.82,134.74,11.06815498]
[1726154478051,3.8522,134.82,134.74,3.64515498]
[1726154478247,3.8522,134.82,134.7,17.79]
[1726154478653,3.3382,134.81,134.73,3.34]
[1726154478859,3.8522,134.82,134.74,3.63204747]
[1726154479054,17.79,134.81,134.74,3.63204747]
[1726154479257,21.1282,134.81,134.73,3.34]
[1726154479563,21.1282,134.81,134.74,3.3399]
[1726154479858,21.1282,134.81,134.74,7.07988516]
[1726154480059,21.1282,134.81,134.74,3.3399]
[1726154480251,3.3382,134.81,134.75,3.7462908]
[1726154480448,7.1902,134.82,134.75,3.7462908]
[1726154480648,7.1902,134.82,134.71,28.5]
[1726154480848,3.8522,134.82,134.71,28.5]
[1726154481054,7.1903,134.82,134.74,3.3398]
[1726154481261,3.8522,134.82,134.75,3.70891133]
[1726154481450,3.8522,134.82,134.71,28.5]
[1726154481652,3.8522,134.82,134.72,3.3403]
[1726154481853,28.5,134.81,134.72,7.02657791]
[1726154482050,3.8522,134.82,134.72,3.68627791]
[1726154482256,3.8522,134.82,134.75,3.3395]
[1726154482971,3.8522,134.82,134.76,3.3393]
[1726154483758,3.8522,134.82,134.77,3.67514673]
[1726154483962,3.8522,134.82,134.73,28.5]
[1726154484168,3.8522,134.82,134.79,3.3386]
[1726154484471,3.8522,134.82,134.79,7.0716289]
[1726154484854,3.8522,134.82,134.79,3.7330289]
[1726154485159,3.8522,134.82,134.78,3.6254645]
[1726154485362,3.8522,134.82,134.77,3.3391]
[1726154486255,3.8522,134.82,134.78,3.3388]
[1726154486954,3.8522,134.82,134.77,3.65996094]
[1726154487157,3.8522,134.82,134.78,28.5]
[1726154487672,3.8522,134.82,134.8,3.3382]
[1726154488960,591.95252,134.83,134.8,3.3382]
[1726154489165,591.95252,134.83,134.81,3.3381]
[1726154489870,591.95252,134.83,134.82,3.3379]
[1726154490765,489.31252,134.83,134.82,31.8379]
[1726154490968,458.82152,134.83,134.82,39.2609]
[1726154491468,457.82152,134.83,134.82,42.89163615]
[1726154492674,454.12152,134.83,134.82,39.2609]
[1726154492867,425.01152,134.83,134.82,39.2609]
[1726154493175,425.01152,134.83,134.82,42.881628]
[1726154493675,299.08152,134.83,134.82,42.881628]
[1726154496878,199.44152,134.83,134.82,42.881628]
[1726154498476,99.80152,134.83,134.82,42.881628]
[1726154499678,99.80152,134.83,134.82,6.958628]
[1726154499878,99.80152,134.83,134.82,35.458628]
[1726154502182,15.11152,134.83,134.82,24.738628]
[1726154505381,4.234,134.91,134.84,3.3372]
[1726154506084,4.234,134.91,134.85,3.3371]
[1726154508882,22.014,134.91,134.82,3.620728]
[1726154509079,22.014,134.91,134.8,25.203]
[1726154509291,4.234,134.91,134.85,3.337]
[1726154509681,4.234,134.91,134.82,17.78]
[1726154509879,4.234,134.91,134.82,25.203]
[1726154510085,4.234,134.91,134.82,17.78]
[1726154511382,4.234,134.91,134.85,3.3371]
[1726154511779,4.234,134.91,134.82,17.78]
[1726154511975,7.5697,134.91,134.84,3.3372]
[1726154512886,4.234,134.91,134.84,3.3372]
[1726154514780,4.234,134.91,134.85,3.3372]
[1726154516995,4.234,134.91,134.86,3.3369]
[1726154517685,4.234,134.91,134.87,3.68559352]
[1726154517887,4.234,134.91,134.88,3.70005118]
[1726154518188,4.234,134.91,134.82,25.203]
[1726154518389,7.5697,134.91,134.85,3.337]
[1726154518589,4.234,134.91,134.85,3.337]
[1726154518896,4.234,134.91,134.8,28.84846263]
[1726154519195,3.3359,134.9,134.83,3.3375]
[1726154519996,7.5698,134.91,134.84,3.3374]
[1726154520793,17.78,134.89,134.8,28.84846263]
[1726154521297,17.78,134.89,134.83,3.3375]
[1726154522692,17.78,134.89,134.8,28.84846263]
[1726154522900,17.78,134.87,134.81,3.338]
[1726154523094,6.2958,134.86,134.81,3.338]
[1726154523500,6.2958,134.86,134.82,3.3379]
[1726154524199,6.2958,134.86,134.83,3.3376]
[1726154524390,6.2958,134.86,134.8,17.78]
[1726154524594,3.3355,134.92,134.81,17.78]
[1726154524797,2.1443,134.9,134.81,17.78]
[1726154525797,2.1443,134.9,134.84,3.3372]
[1726154527097,2.1443,134.9,134.83,17.78]
[1726154528397,2.1443,134.9,134.85,3.3371]
[1726154528799,2.1443,134.9,134.83,17.78]
[1726154529499,2.1443,134.9,134.85,3.3371]
[1726154529802,2.1443,134.9,134.87,3.3366]
[1726154530304,2.1443,134.9,134.85,3.337]
[1726154531798,2.1443,134.9,134.81,17.78]
[1726154532296,5.4804,134.9,134.82,3.3378]
[1726154532698,17.78,134.89,134.82,3.3378]
[1726154533101,3.3365,134.88,134.81,3.3381]
[1726154533307,3.3365,134.88,134.77,17.78]
[1726154533601,3.3365,134.88,134.77,21.54065841]
[1726154534005,21.1167,134.87,134.77,28.96365841]
[1726154534195,2.2052,134.86,134.8,3.3384]
[1726154535203,2.1768,134.85,134.8,3.3384]
[1726154535598,4.2413,134.85,134.77,21.54065841]
[1726154536200,4.2413,134.85,134.79,3.3385]
[1726154538400,4.2413,134.85,134.77,21.54065841]
[1726154538608,22.0213,134.85,134.77,3.76065841]
[1726154538905,3.3375,134.84,134.75,17.78]
[1726154539109,3.3375,134.84,134.77,3.339]
[1726154539309,17.78,134.83,134.78,3.71551468]
[1726154539609,3.338,134.82,134.74,3.3397]
[1726154539809,17.78,134.83,134.74,3.3397]
[1726154540134,17.78,134.79,134.73,3.75009272]
[1726154540314,17.78,134.76,134.72,3.68815369]
[1726154540509,17.78,134.76,134.66,17.78]
[1726154540916,21.1196,134.76,134.67,3.3414]
[1726154541107,21.1196,134.76,134.67,3.71151991]
[1726154541304,17.78,134.75,134.67,3.3415]
[1726154541508,17.78,134.75,134.67,7.00591658]
[1726154541718,17.78,134.75,134.67,3.3415]
[1726154542217,17.78,134.75,134.68,3.3414]
[1726154542827,17.78,134.75,134.69,3.3411]
[1726154543025,17.78,134.75,134.66,17.78]
[1726154543212,17.78,134.77,134.66,21.48954572]
[1726154544710,4.1076,134.76,134.68,3.3412]
[1726154544911,4.1076,134.76,134.66,21.48954572]
[1726154545719,17.78,134.75,134.66,21.48954572]
[1726154546418,17.78,134.75,134.66,3.70954572]
[1726154546619,17.78,134.75,134.67,3.3414]
[1726154546913,228.0,134.89,134.7,17.78]
[1726154547135,17.78,134.82,134.72,17.78]
[1726154547317,2.1249,134.81,134.72,21.45921027]
[1726154547516,4.3242,134.81,134.72,21.45921027]
[1726154548122,17.78,134.79,134.72,7.01941027]
[1726154548319,17.78,134.79,134.72,3.3402]
[1726154548618,17.78,134.79,134.7,7.423]
[1726154548822,17.78,134.79,134.72,3.3403]
[1726154549722,17.78,134.79,134.73,3.3401]
[1726154551918,17.78,134.79,134.72,3.3403]
[1726154552321,17.78,134.79,134.71,3.3405]
[1726154552921,21.1188,134.79,134.71,3.3405]
[1726154553226,17.78,134.77,134.7,7.0856972]
[1726154553427,2.1693,134.76,134.7,3.3408]
[1726154553629,17.78,134.75,134.62,7.423]
[1726154553828,17.78,134.75,134.64,17.78]
[1726154553829,21.9985,134.75,134.64,17.78]
[1726154554221,21.9985,134.75,134.67,3.3415]
[1726154554420,25.3383,134.75,134.67,7.0506867]
[1726154554837,25.3383,134.75,134.67,3.7091867]
[1726154555023,25.3383,134.75,134.66,3.3418]
[1726154555529,25.3383,134.75,134.66,7.09254205]
[1726154556030,25.3383,134.75,134.67,3.3415]
[1726154557030,17.78,134.73,134.62,25.203]
[1726154557531,17.78,134.73,134.65,3.3419]
[1726154557532,21.1202,134.73,134.65,3.3419]
[1726154557760,21.1202,134.73,134.65,6.97636629]
[1726154558034,17.78,134.71,134.65,3.63446629]
[1726154558331,17.78,134.71,134.61,2.0417]
[1726154558539,2.0224,134.7,134.6,17.78]
[1726154558932,21.9223,134.69,134.58,21.58019297]
[1726154559231,21.9223,134.69,134.58,17.78]
[1726154559438,21.9223,134.69,134.58,21.49008465]
[1726154559927,3.3416,134.68,134.6,3.3432]
[1726154560119,21.9223,134.69,134.58,21.49008465]
[1726154560321,21.9223,134.69,134.6,3.3433]
[1726154560322,3.3414,134.68,134.6,3.3433]
[1726154560522,3.3414,134.68,134.58,21.49008465]
[1726154560733,3.3414,134.68,134.6,3.3433]
[1726154560734,17.78,134.67,134.6,3.3433]
[1726154560928,17.78,134.67,134.55,9.8162]
[1726154561129,17.78,134.67,134.55,23.53998823]
[1726154561330,17.78,134.65,134.56,3.3443]
[1726154561531,2.0786,134.64,134.56,3.3443]
[1726154561732,2.0786,134.64,134.55,21.52238823]
[1726154561928,2.0786,134.64,134.57,17.78]
[1726154562137,2.0786,134.64,134.55,3.74238823]
[1726154562434,2.1208,134.63,134.58,3.3438]
[1726154562833,2.1208,134.63,134.55,21.42338781]
[1726154563061,2.1208,134.63,134.55,17.78]
[1726154563227,2.1208,134.63,134.57,3.3439]
[1726154564041,2.1208,134.63,134.58,3.3437]
[1726154564346,2.1208,134.63,134.59,17.78]
[1726154564641,2.0786,134.64,134.59,17.78]
[1726154564835,19.8794,134.69,134.61,3.3431]
[1726154564836,2.0708,134.67,134.61,3.3431]
[1726154565036,2.0708,134.67,134.59,21.47019316]
[1726154566336,2.0708,134.67,134.61,3.3431]
[1726154566738,2.0708,134.67,134.59,21.47019316]
[1726154566930,2.0708,134.67,134.6,3.3433]
[1726154567237,2.0708,134.67,134.59,21.47019316]
[1726154567551,2.0708,134.67,134.6,3.3433]
[1726154567844,2.0708,134.67,134.61,17.78]
[1726154568143,2.0708,134.67,134.61,21.123]
[1726154568337,2.0708,134.67,134.61,17.78]
[1726154568641,2.0708,134.67,134.62,3.3427]
[1726154568840,2.0708,134.67,134.63,3.74898236]
[1726154569034,2.0708,134.67,134.61,17.78]
[1726154569536,2.0708,134.67,134.62,3.3428]
[1726154570947,2.0708,134.67,134.63,3.3425]
[1726154571339,2.0283,134.68,134.61,21.47327682]
[1726154571540,2.1605,134.7,134.63,17.78]
[1726154572040,2.1605,134.7,134.61,21.47327682]
[1726154572241,2.1491,134.69,134.61,21.47327682]
[1726154572447,5.4903,134.69,134.61,21.47327682]
[1726154572744,4.1785,134.69,134.61,21.47327682]
[1726154572947,7.5197,134.69,134.61,24.81617682]
[1726154573144,4.1785,134.69,134.61,21.47327682]
[1726154573546,4.1785,134.69,134.63,3.3426]
[1726154574154,4.1785,134.69,134.64,3.3424]
[1726154574340,4.1785,134.69,134.61,28.89627682]
[1726154575342,4.1785,134.69,134.63,3.3425]
[1726154575552,4.1785,134.69,134.61,28.89627682]
[1726154575946,4.1785,134.69,134.62,3.3428]
[1726154576250,4.1785,134.69,134.61,28.89627682]
[1726154576853,4.1785,134.69,134.63,3.3425]
[1726154578054,4.1785,134.69,134.61,28.89627682]
[1726154578251,2.1491,134.69,134.61,21.47327682]
[1726154578452,2.1491,134.69,134.65,3.342]
[1726154578648,2.1605,134.7,134.65,17.78]
[1726154579053,2.1605,134.7,134.65,21.122]
[1726154579553,2.1605,134.7,134.64,3.3422]
[1726154579758,2.1605,134.7,134.62,9.6058]
[1726154580656,2.1605,134.7,134.64,3.3422]
[1726154582861,2.1605,134.7,134.62,5.5255]
[1726154583080,2.1605,134.7,134.61,21.47327682]
[1726154583454,2.1605,134.7,134.63,17.78]
[1726154583660,2.1605,134.7,134.65,17.78]
[1726154583864,2.1605,134.7,134.66,3.3416]
[1726154584160,2.1605,134.7,134.65,17.78]
[1726154585265,2.1605,134.7,134.65,21.122]
[1726154585865,2.1605,134.7,134.66,3.3418]
[1726154586162,2.1605,134.7,134.65,17.78]
[1726154586384,2.1605,134.7,134.65,21.1221]
[1726154586764,2.1605,134.7,134.63,17.78]
[1726154586975,2.1605,134.7,134.61,21.47327682]
[1726154587264,5.5015,134.7,134.61,21.47327682]
[1726154587660,23.2815,134.7,134.62,3.3427]
[1726154588465,19.9405,134.7,134.61,3.69327682]
[1726154588664,19.9405,134.7,134.59,17.78]
[1726154588967,3.3415,134.68,134.59,17.78]
[1726154589169,2.0052,134.67,134.59,21.47458676]
[1726154589378,2.0052,134.67,134.62,3.3428]
[1726154589672,2.0052,134.67,134.61,17.78]
[1726154589883,2.0052,134.67,134.62,3.3427]
[1726154590961,2.0052,134.67,134.61,17.78]
[1726154590962,2.0052,134.67,134.61,21.123]
[1726154591475,2.0052,134.67,134.62,3.3427]
[1726154591880,2.0052,134.67,134.64,3.3422]
[1726154592176,2.1605,134.7,134.63,17.78]
[1726154592375,2.1605,134.7,134.65,3.3421]
[1726154592974,2.1605,134.7,134.66,3.78434575]
[1726154593376,2.1605,134.7,134.66,7.12624575]
[1726154593586,2.1813,134.73,134.65,17.78]
[1726154593779,2.1813,134.73,134.66,17.78]
[1726154593974,2.1813,134.73,134.68,3.3412]
[1726154594183,2.1813,134.73,134.68,17.78]
[1726154594482,2.122,134.75,134.71,17.78]
[1726154594984,2.122,134.75,134.69,17.78]
[1726154596080,2.1075,134.77,134.72,17.78]
[1726154596383,2.1075,134.77,134.7,17.78]
[1726154596598,2.1075,134.77,134.71,3.3404]
[1726154598098,2.1075,134.77,134.7,21.1208]
[1726154599701,5.4467,134.77,134.68,21.1211]
[1726154599895,5.4467,134.77,134.68,17.78]
[1726154600096,3.3394,134.76,134.68,17.78]